[Event "Titled Tuesday Blitz April 05 Late 2022"]
[White "Keymer, Vincent"]
[Black "Migot, Tangi"]
[WhiteFideId "12940690"]
[BlackFideId "662445"]
[WhiteElo "2557"]
[BlackElo "2518"]
[Result "1-0"]
[Round "01"]
[TimeControl "180+1"]
[Date "2022.04.05"]
[WhiteClock "0:00:15"]
[BlackClock "0:00:17"]

1. Nf3 {[%clk 0:03:00]}  d5 {[%clk 0:02:59]} 2. e3 {[%clk 0:02:58]}  e6 {[%clk 0:03:00]} 3. c4 {[%clk 0:02:58]}  Nf6 {[%clk 0:03:00]} 4. Nc3 {[%clk 0:02:59]}  Bb4 {[%clk 0:02:58]} 5. a3 {[%clk 0:02:52]}  Bxc3 {[%clk 0:02:57]} 6. dxc3 {[%clk 0:02:51]}  O-O {[%clk 0:02:56]} 7. Qc2 {[%clk 0:02:49]}  b6 {[%clk 0:02:54]} 8. cxd5 {[%clk 0:02:35]}  exd5 {[%clk 0:02:50]} 9. c4 {[%clk 0:02:33]}  dxc4 {[%clk 0:02:37]} 10. Bxc4 {[%clk 0:02:32]}  Ba6 {[%clk 0:02:37]} 11. O-O {[%clk 0:02:22]}  Bxc4 {[%clk 0:02:33]} 12. Qxc4 {[%clk 0:02:23]}  c5 {[%clk 0:02:33]} 13. b4 {[%clk 0:02:15]}  Nbd7 {[%clk 0:02:29]} 14. Bb2 {[%clk 0:02:13]}  cxb4 {[%clk 0:02:24]} 15. axb4 {[%clk 0:02:12]}  a5 {[%clk 0:02:24]} 16. Rfd1 {[%clk 0:02:09]}  Qc8 {[%clk 0:02:21]} 17. Qh4 {[%clk 0:02:00]}  axb4 {[%clk 0:02:14]} 18. Rxa8 {[%clk 0:01:49]}  Qxa8 {[%clk 0:02:13]} 19. Qxb4 {[%clk 0:01:49]}  Rc8 {[%clk 0:02:07]} 20. h3 {[%clk 0:01:47]}  h6 {[%clk 0:02:06]} 21. Bxf6 {[%clk 0:01:42]}  Nxf6 {[%clk 0:02:04]} 22. Qxb6 {[%clk 0:01:43]}  Qa2 {[%clk 0:01:52]} 23. Rd8+ {[%clk 0:01:41]}  Rxd8 {[%clk 0:01:50]} 24. Qxd8+ {[%clk 0:01:42]}  Kh7 {[%clk 0:01:50]} 25. Qd3+ {[%clk 0:01:42]}  Kg8 {[%clk 0:01:49]} 26. Nd4 {[%clk 0:01:24]}  Qa1+ {[%clk 0:01:42]} 27. Kh2 {[%clk 0:01:23]}  Qa2 {[%clk 0:01:40]} 28. Qf5 {[%clk 0:01:12]}  Qd5 {[%clk 0:01:32]} 29. Qf4 {[%clk 0:01:05]}  Qe4 {[%clk 0:01:19]} 30. Qf5 {[%clk 0:00:53]}  Qxf5 {[%clk 0:01:12]} 31. Nxf5 {[%clk 0:00:54]}  h5 {[%clk 0:01:13]} 32. g3 {[%clk 0:00:54]}  g6 {[%clk 0:01:12]} 33. Nd4 {[%clk 0:00:54]}  Kg7 {[%clk 0:01:09]} 34. Kg2 {[%clk 0:00:54]}  Ne4 {[%clk 0:01:09]} 35. f3 {[%clk 0:00:52]}  Nc3 {[%clk 0:01:08]} 36. e4 {[%clk 0:00:46]}  Nd1 {[%clk 0:01:07]} 37. Kf1 {[%clk 0:00:44]}  Ne3+ {[%clk 0:01:08]} 38. Kf2 {[%clk 0:00:43]}  Nc4 {[%clk 0:01:09]} 39. Ke2 {[%clk 0:00:37]}  Ne5 {[%clk 0:01:00]} 40. f4 {[%clk 0:00:37]}  Nc4 {[%clk 0:00:58]} 41. Kd3 {[%clk 0:00:37]}  Nd6 {[%clk 0:00:58]} 42. e5 {[%clk 0:00:23]}  Ne8 {[%clk 0:00:55]} 43. Ke4 {[%clk 0:00:24]}  Nc7 {[%clk 0:00:54]} 44. Nc6 {[%clk 0:00:21]}  Ne6 {[%clk 0:00:51]} 45. Nb4 {[%clk 0:00:20]}  Nc5+ {[%clk 0:00:50]} 46. Kd4 {[%clk 0:00:20]}  Ne6+ {[%clk 0:00:49]} 47. Ke4 {[%clk 0:00:20]}  Nc5+ {[%clk 0:00:49]} 48. Ke3 {[%clk 0:00:21]}  Ne6 {[%clk 0:00:50]} 49. Nd5 {[%clk 0:00:21]}  Nc5 {[%clk 0:00:33]} 50. Nc3 {[%clk 0:00:21]}  f6 {[%clk 0:00:29]} 51. exf6+ {[%clk 0:00:20]}  Kf7 {[%clk 0:00:26]} 52. Ne4 {[%clk 0:00:21]}  Ne6 {[%clk 0:00:22]} 53. Ng5+ {[%clk 0:00:21]}  Kxf6 {[%clk 0:00:20]} 54. Nxe6 {[%clk 0:00:21]}  Kxe6 {[%clk 0:00:21]} 55. Ke4 {[%clk 0:00:22]}  Kf6 {[%clk 0:00:22]} 56. Ke3 {[%clk 0:00:13]}  Kf5 {[%clk 0:00:20]} 57. Kf3 {[%clk 0:00:13]}  g5 {[%clk 0:00:17]} 58. g4+ {[%clk 0:00:13]}  hxg4+ {[%clk 0:00:16]} 59. hxg4+ {[%clk 0:00:14]}  Kf6 {[%clk 0:00:17]} 60. f5 {[%clk 0:00:15]} 1-0


[Site "https://www.chess.com"]

[Event "Titled Tuesday Blitz April 05 Late 2022"]
[White "Khripachenko, Alexander"]
[Black "Onslow, Alfie"]
[WhiteFideId "54184975"]
[BlackFideId "436976"]
[WhiteElo "2193"]
[BlackElo "1884"]
[Result "1-0"]
[Round "01"]
[TimeControl "180+1"]
[Date "2022.04.06"]
[WhiteClock "0:02:37"]
[BlackClock "0:00:17"]

1. e4 {[%clk 0:03:00]}  c5 {[%clk 0:02:57]} 2. Nf3 {[%clk 0:03:00]}  Nc6 {[%clk 0:02:56]} 3. d4 {[%clk 0:03:01]}  cxd4 {[%clk 0:02:57]} 4. Nxd4 {[%clk 0:03:01]}  e5 {[%clk 0:02:58]} 5. Nb5 {[%clk 0:03:01]}  d6 {[%clk 0:02:58]} 6. a4 {[%clk 0:03:01]}  Nf6 {[%clk 0:02:49]} 7. Bg5 {[%clk 0:03:01]}  a6 {[%clk 0:02:46]} 8. N5c3 {[%clk 0:03:01]}  Be7 {[%clk 0:02:44]} 9. Bxf6 {[%clk 0:03:00]}  Bxf6 {[%clk 0:02:43]} 10. Na3 {[%clk 0:03:01]}  Be6 {[%clk 0:02:41]} 11. Bc4 {[%clk 0:03:01]}  O-O {[%clk 0:02:36]} 12. Nd5 {[%clk 0:03:00]}  Bg5 {[%clk 0:02:30]} 13. c3 {[%clk 0:03:00]}  Rc8 {[%clk 0:02:23]} 14. O-O {[%clk 0:02:59]}  Ne7 {[%clk 0:02:15]} 15. Qb3 {[%clk 0:02:59]}  Bxd5 {[%clk 0:01:54]} 16. Bxd5 {[%clk 0:02:59]}  b6 {[%clk 0:01:44]} 17. Rfd1 {[%clk 0:02:57]}  Qc7 {[%clk 0:01:42]} 18. Rd3 {[%clk 0:02:57]}  Rfd8 {[%clk 0:01:39]} 19. Bxf7+ {[%clk 0:02:56]}  Kh8 {[%clk 0:01:37]} 20. Be6 {[%clk 0:02:54]}  Rb8 {[%clk 0:01:35]} 21. Rad1 {[%clk 0:02:54]}  Ng6 {[%clk 0:01:20]} 22. g3 {[%clk 0:02:48]}  Qe7 {[%clk 0:01:15]} 23. Bf5 {[%clk 0:02:47]}  Nf8 {[%clk 0:00:59]} 24. Nc4 {[%clk 0:02:46]}  g6 {[%clk 0:00:26]} 25. Bh3 {[%clk 0:02:46]}  b5 {[%clk 0:00:26]} 26. axb5 {[%clk 0:02:39]}  axb5 {[%clk 0:00:27]} 27. Nxd6 {[%clk 0:02:37]}  Rb6 {[%clk 0:00:17]} 28. Nf7+ {[%clk 0:02:37]} 1-0


[Site "https://www.chess.com"]

[Event "Titled Tuesday Blitz April 05 Late 2022"]
[White "Kobalia, Mikhail"]
[Black "Davtyan, David Arm."]
[WhiteFideId "4119150"]
[BlackFideId "13310046"]
[WhiteElo "2667"]
[BlackElo "2158"]
[Result "1-0"]
[Round "01"]
[TimeControl "180+1"]
[Date "2022.04.06"]
[WhiteClock "0:00:47"]
[BlackClock "0:00:52"]

1. e4 {[%clk 0:02:59]}  c5 {[%clk 0:03:00]} 2. Nf3 {[%clk 0:02:58]}  Nc6 {[%clk 0:03:00]} 3. Bb5 {[%clk 0:02:58]}  g6 {[%clk 0:03:00]} 4. Bxc6 {[%clk 0:02:58]}  dxc6 {[%clk 0:02:59]} 5. d3 {[%clk 0:02:58]}  Bg7 {[%clk 0:02:59]} 6. Nbd2 {[%clk 0:02:58]}  Nf6 {[%clk 0:02:57]} 7. a4 {[%clk 0:02:58]}  a5 {[%clk 0:02:56]} 8. Nc4 {[%clk 0:02:58]}  Nd7 {[%clk 0:02:51]} 9. Bd2 {[%clk 0:02:57]}  b6 {[%clk 0:02:49]} 10. Bc3 {[%clk 0:02:53]}  Bxc3+ {[%clk 0:02:40]} 11. bxc3 {[%clk 0:02:54]}  b5 {[%clk 0:02:36]} 12. Ne3 {[%clk 0:02:53]}  Nb6 {[%clk 0:02:31]} 13. axb5 {[%clk 0:02:41]}  cxb5 {[%clk 0:02:31]} 14. d4 {[%clk 0:02:41]}  c4 {[%clk 0:02:15]} 15. Ne5 {[%clk 0:02:33]}  Bb7 {[%clk 0:02:10]} 16. Qb1 {[%clk 0:02:30]}  b4 {[%clk 0:02:00]} 17. O-O {[%clk 0:02:02]}  Bxe4 {[%clk 0:01:51]} 18. cxb4 {[%clk 0:02:00]}  Qxd4 {[%clk 0:01:47]} 19. bxa5 {[%clk 0:01:47]}  Qxe5 {[%clk 0:01:46]} 20. axb6 {[%clk 0:01:36]}  O-O {[%clk 0:01:46]} 21. Rxa8 {[%clk 0:01:29]}  Rxa8 {[%clk 0:01:44]} 22. Qb4 {[%clk 0:01:30]}  c3 {[%clk 0:01:39]} 23. h3 {[%clk 0:01:25]}  Bb7 {[%clk 0:01:38]} 24. Re1 {[%clk 0:01:23]}  h5 {[%clk 0:01:32]} 25. Rd1 {[%clk 0:01:09]}  Kh7 {[%clk 0:01:14]} 26. h4 {[%clk 0:01:07]}  Qe6 {[%clk 0:00:58]} 27. Qd4 {[%clk 0:00:58]}  Qc6 {[%clk 0:00:56]} 28. Qd7 {[%clk 0:00:51]}  Qxb6 {[%clk 0:00:54]} 29. Qxe7 {[%clk 0:00:50]}  Kg8 {[%clk 0:00:52]} 30. Rd7 {[%clk 0:00:47]} 1-0


[Site "https://www.chess.com"]

[Event "Titled Tuesday Blitz April 05 Late 2022"]
[White "Kohler, Aran"]
[Black "Guz, Ari"]
[WhiteFideId "1002856"]
[BlackFideId "2825759"]
[WhiteElo "2299"]
[BlackElo "1913"]
[Result "1/2-1/2"]
[Round "01"]
[TimeControl "180+1"]
[Date "2022.04.06"]
[WhiteClock "0:00:21"]
[BlackClock "0:00:16"]

1. e4 {[%clk 0:02:58]}  e6 {[%clk 0:02:48]} 2. d4 {[%clk 0:02:57]}  d5 {[%clk 0:02:48]} 3. Nc3 {[%clk 0:02:57]}  dxe4 {[%clk 0:02:48]} 4. Nxe4 {[%clk 0:02:56]}  Nd7 {[%clk 0:02:49]} 5. Nf3 {[%clk 0:02:54]}  Ngf6 {[%clk 0:02:49]} 6. Nxf6+ {[%clk 0:02:49]}  Nxf6 {[%clk 0:02:49]} 7. c3 {[%clk 0:02:49]}  Be7 {[%clk 0:02:45]} 8. Bd3 {[%clk 0:02:47]}  O-O {[%clk 0:02:42]} 9. Bg5 {[%clk 0:02:46]}  b6 {[%clk 0:02:39]} 10. h4 {[%clk 0:02:44]}  Bb7 {[%clk 0:02:37]} 11. Bxf6 {[%clk 0:02:31]}  Bxf6 {[%clk 0:02:37]} 12. Bxh7+ {[%clk 0:02:19]}  Kxh7 {[%clk 0:02:10]} 13. Ng5+ {[%clk 0:02:19]}  Kh6 {[%clk 0:01:54]} 14. Qd2 {[%clk 0:02:04]}  Bxg5 {[%clk 0:01:46]} 15. hxg5+ {[%clk 0:02:04]}  Kg6 {[%clk 0:01:45]} 16. Qd3+ {[%clk 0:02:04]}  f5 {[%clk 0:01:46]} 17. gxf6+ {[%clk 0:02:04]}  Kxf6 {[%clk 0:01:46]} 18. O-O-O {[%clk 0:01:54]}  Qd5 {[%clk 0:01:43]} 19. f3 {[%clk 0:01:40]}  Qg5+ {[%clk 0:01:24]} 20. Rd2 {[%clk 0:01:34]}  Ke7 {[%clk 0:01:22]} 21. Re1 {[%clk 0:01:32]}  Kd7 {[%clk 0:01:21]} 22. Re5 {[%clk 0:01:16]}  Rf5 {[%clk 0:01:18]} 23. g4 {[%clk 0:01:06]}  Rxe5 {[%clk 0:01:09]} 24. dxe5+ {[%clk 0:01:06]}  Ke8 {[%clk 0:01:10]} 25. Qd7+ {[%clk 0:00:59]}  Kf8 {[%clk 0:01:10]} 26. Qxc7 {[%clk 0:00:47]}  Bd5 {[%clk 0:00:59]} 27. c4 {[%clk 0:00:43]}  Bxf3 {[%clk 0:00:39]} 28. Qd6+ {[%clk 0:00:42]}  Kg8 {[%clk 0:00:24]} 29. Qxe6+ {[%clk 0:00:41]}  Kh7 {[%clk 0:00:25]} 30. Qf5+ {[%clk 0:00:31]}  Qxf5 {[%clk 0:00:25]} 31. gxf5 {[%clk 0:00:32]}  Re8 {[%clk 0:00:26]} 32. e6 {[%clk 0:00:31]}  Bg4 {[%clk 0:00:26]} 33. Rh2+ {[%clk 0:00:30]}  Kg8 {[%clk 0:00:26]} 34. Rf2 {[%clk 0:00:30]}  Rf8 {[%clk 0:00:26]} 35. e7 {[%clk 0:00:29]}  Re8 {[%clk 0:00:26]} 36. f6 {[%clk 0:00:29]}  gxf6 {[%clk 0:00:21]} 37. Rxf6 {[%clk 0:00:29]}  Bd7 {[%clk 0:00:21]} 38. Rf8+ {[%clk 0:00:28]}  Rxf8 {[%clk 0:00:21]} 39. exf8=Q+ {[%clk 0:00:29]}  Kxf8 {[%clk 0:00:22]} 40. b4 {[%clk 0:00:26]}  Ke7 {[%clk 0:00:20]} 41. Kc2 {[%clk 0:00:25]}  Be6 {[%clk 0:00:20]} 42. Kc3 {[%clk 0:00:25]}  Kd7 {[%clk 0:00:19]} 43. a4 {[%clk 0:00:25]}  Kc6 {[%clk 0:00:17]} 44. c5 {[%clk 0:00:24]}  b5 {[%clk 0:00:15]} 45. axb5+ {[%clk 0:00:23]}  Kxb5 {[%clk 0:00:16]} 46. c6 {[%clk 0:00:22]}  Bc8 {[%clk 0:00:14]} 47. Kb2 {[%clk 0:00:22]}  Kxc6 {[%clk 0:00:15]} 48. b5+ {[%clk 0:00:22]}  Kxb5 {[%clk 0:00:16]} 49. Ka3 {[%clk 0:00:21]} 1/2-1/2


[Site "https://www.chess.com"]

[Event "Titled Tuesday Blitz April 05 Late 2022"]
[White "Kosakowski, Jakub"]
[Black "Ansh M Shah"]
[WhiteFideId "1185080"]
[BlackFideId "25033379"]
[WhiteElo "2454"]
[BlackElo "1819"]
[Result "1-0"]
[Round "01"]
[TimeControl "180+1"]
[Date "2022.04.06"]
[WhiteClock "0:02:55"]
[BlackClock "0:02:11"]

1. Nf3 {[%clk 0:02:59]}  Nf6 {[%clk 0:02:59]} 2. b3 {[%clk 0:02:40]}  g6 {[%clk 0:03:00]} 3. Bb2 {[%clk 0:02:39]}  Bg7 {[%clk 0:03:01]} 4. e3 {[%clk 0:02:40]}  O-O {[%clk 0:03:01]} 5. d4 {[%clk 0:02:39]}  d5 {[%clk 0:03:02]} 6. Bd3 {[%clk 0:02:38]}  c5 {[%clk 0:03:02]} 7. dxc5 {[%clk 0:02:38]}  Nbd7 {[%clk 0:02:56]} 8. O-O {[%clk 0:02:36]}  Nxc5 {[%clk 0:02:55]} 9. Be2 {[%clk 0:02:35]}  Bg4 {[%clk 0:02:40]} 10. Nbd2 {[%clk 0:02:34]}  Rc8 {[%clk 0:02:29]} 11. h3 {[%clk 0:02:34]}  Bf5 {[%clk 0:02:24]} 12. Nd4 {[%clk 0:02:22]}  Bd7 {[%clk 0:02:21]} 13. c4 {[%clk 0:02:22]}  dxc4 {[%clk 0:02:19]} 14. Nxc4 {[%clk 0:02:21]}  Nfe4 {[%clk 0:02:15]} 15. Rc1 {[%clk 0:02:19]}  a6 {[%clk 0:01:59]} 16. b4 {[%clk 0:02:09]}  Na4 {[%clk 0:01:53]} 17. Bf3 {[%clk 0:02:05]}  Nf6 {[%clk 0:01:29]} 18. Ba1 {[%clk 0:01:59]}  b5 {[%clk 0:01:19]} 19. Na5 {[%clk 0:01:58]}  e5 {[%clk 0:01:07]} 20. Ndc6 {[%clk 0:01:56]}  Qe8 {[%clk 0:00:55]} 21. Nxe5 {[%clk 0:01:49]}  Rxc1 {[%clk 0:00:53]} 22. Qxc1 {[%clk 0:01:49]}  Be6 {[%clk 0:00:45]} 23. Rd1 {[%clk 0:01:41]}  Bxa2 {[%clk 0:00:35]} 24. Rd6 {[%clk 0:01:32]}  Qc8 {[%clk 0:00:29]} 25. Nac6 {[%clk 0:01:28]}  Kh8 {[%clk 0:00:19]} 26. Qd2 {[%clk 0:01:26]}  Be6 {[%clk 0:00:18]} 27. Nd4 {[%clk 0:01:06]}  Bc4 {[%clk 0:00:17]} 28. Rc6 {[%clk 0:01:02]}  Qe8 {[%clk 0:00:17]} 29. Nxc4 {[%clk 0:01:02]}  bxc4 {[%clk 0:00:16]} 30. Rxc4 {[%clk 0:01:00]}  Ne4 {[%clk 0:00:14]} 31. Qc2 {[%clk 0:00:59]}  Nd6 {[%clk 0:00:13]} 32. Rc6 {[%clk 0:00:58]}  Nb5 {[%clk 0:00:13]} 33. Qxa4 {[%clk 0:00:57]}  Bxd4 {[%clk 0:00:12]} 34. Bxd4+ {[%clk 0:00:57]}  Nxd4 {[%clk 0:00:11]} 35. exd4 {[%clk 0:00:57]}  Qe1+ {[%clk 0:00:08]} 36. Kh2 {[%clk 0:00:57]}  Qxf2 {[%clk 0:00:06]} 37. d5 {[%clk 0:00:54]}  h5 {[%clk 0:00:03]} 38. Qc2 {[%clk 0:00:44]}  Qh4 {[%clk 0:00:01]} 39. Qc3+ {[%clk 0:00:43]}  Kh7 {[%clk 0:00:01]} 40. Qf6 {[%clk 0:00:43]}  Qxf6 {[%clk 0:00:01]} 41. Rxf6 {[%clk 0:00:43]}  Kg7 {[%clk 0:00:02]} 42. Rxa6 {[%clk 0:00:43]}  Rd8 {[%clk 0:00:03]} 43. d6 {[%clk 0:00:43]}  h4 {[%clk 0:00:04]} 44. Bd5 {[%clk 0:00:43]}  f6 {[%clk 0:00:04]} 45. Ra7+ {[%clk 0:00:43]}  Kh6 {[%clk 0:00:04]} 46. d7 {[%clk 0:00:43]}  g5 {[%clk 0:00:04]} 47. Bc6 {[%clk 0:00:42]}  f5 {[%clk 0:00:03]} 48. Ra8 {[%clk 0:00:42]}  Rxa8 {[%clk 0:00:03]} 49. Bxa8 {[%clk 0:00:43]}  g4 {[%clk 0:00:04]} 50. hxg4 {[%clk 0:00:43]}  f4 {[%clk 0:00:05]} 51. d8=Q {[%clk 0:00:43]}  f3 {[%clk 0:00:06]} 52. Qxh4+ {[%clk 0:00:43]}  Kg7 {[%clk 0:00:05]} 53. gxf3 {[%clk 0:00:43]}  Kf8 {[%clk 0:00:04]} 54. Qh7 {[%clk 0:00:42]}  Ke8 {[%clk 0:00:05]} 55. Bd5 {[%clk 0:00:43]}  Kd8 {[%clk 0:00:05]} 56. Qf7 {[%clk 0:00:43]}  Kc8 {[%clk 0:00:06]} 57. g5 {[%clk 0:00:44]}  Kd8 {[%clk 0:00:06]} 58. Kg3 {[%clk 0:00:44]}  Kc8 {[%clk 0:00:07]} 59. Kf2 {[%clk 0:00:45]}  Kd8 {[%clk 0:00:07]} 60. Ke1 {[%clk 0:00:46]}  Kc8 {[%clk 0:00:07]} 61. Kd1 {[%clk 0:00:47]}  Kd8 {[%clk 0:00:07]} 62. Kc1 {[%clk 0:00:48]}  Kc8 {[%clk 0:00:08]} 63. Kb1 {[%clk 0:00:49]}  Kd8 {[%clk 0:00:09]} 64. Ka1 {[%clk 0:00:50]}  Kc8 {[%clk 0:00:10]} 65. f4 {[%clk 0:00:51]}  Kd8 {[%clk 0:00:11]} 66. Ka2 {[%clk 0:00:52]}  Kc8 {[%clk 0:00:12]} 67. Kb2 {[%clk 0:00:53]}  Kd8 {[%clk 0:00:12]} 68. Kc2 {[%clk 0:00:53]}  Kc8 {[%clk 0:00:13]} 69. Kd2 {[%clk 0:00:54]}  Kd8 {[%clk 0:00:14]} 70. Ke2 {[%clk 0:00:55]}  Kc8 {[%clk 0:00:15]} 71. Kf2 {[%clk 0:00:56]}  Kd8 {[%clk 0:00:16]} 72. Kg2 {[%clk 0:00:57]}  Kc8 {[%clk 0:00:17]} 73. Kh2 {[%clk 0:00:58]}  Kd8 {[%clk 0:00:18]} 74. Kh1 {[%clk 0:00:59]}  Kc8 {[%clk 0:00:19]} 75. Kg1 {[%clk 0:01:00]}  Kd8 {[%clk 0:00:20]} 76. Kf1 {[%clk 0:01:01]}  Kc8 {[%clk 0:00:21]} 77. f5 {[%clk 0:01:02]}  Kd8 {[%clk 0:00:21]} 78. Ke1 {[%clk 0:01:02]}  Kc8 {[%clk 0:00:22]} 79. Kd1 {[%clk 0:01:03]}  Kd8 {[%clk 0:00:23]} 80. Kc1 {[%clk 0:01:04]}  Kc8 {[%clk 0:00:23]} 81. Kb1 {[%clk 0:01:05]}  Kd8 {[%clk 0:00:24]} 82. Ka1 {[%clk 0:01:06]}  Kc8 {[%clk 0:00:25]} 83. Ka2 {[%clk 0:01:07]}  Kd8 {[%clk 0:00:26]} 84. Kb2 {[%clk 0:01:08]}  Kc8 {[%clk 0:00:27]} 85. Kc2 {[%clk 0:01:09]}  Kd8 {[%clk 0:00:28]} 86. Kd2 {[%clk 0:01:10]}  Kc8 {[%clk 0:00:29]} 87. Ke2 {[%clk 0:01:11]}  Kd8 {[%clk 0:00:30]} 88. Kf2 {[%clk 0:01:11]}  Kc8 {[%clk 0:00:31]} 89. Kg2 {[%clk 0:01:12]}  Kd8 {[%clk 0:00:32]} 90. Kh2 {[%clk 0:01:13]}  Kc8 {[%clk 0:00:32]} 91. f6 {[%clk 0:01:14]}  Kd8 {[%clk 0:00:33]} 92. Kh1 {[%clk 0:01:15]}  Kc8 {[%clk 0:00:34]} 93. Kg1 {[%clk 0:01:16]}  Kd8 {[%clk 0:00:35]} 94. Kf1 {[%clk 0:01:17]}  Kc8 {[%clk 0:00:36]} 95. Ke1 {[%clk 0:01:18]}  Kd8 {[%clk 0:00:37]} 96. Kd1 {[%clk 0:01:19]}  Kc8 {[%clk 0:00:38]} 97. Kc1 {[%clk 0:01:20]}  Kd8 {[%clk 0:00:39]} 98. Kb1 {[%clk 0:01:20]}  Kc8 {[%clk 0:00:40]} 99. Ka1 {[%clk 0:01:21]}  Kd8 {[%clk 0:00:41]} 100. Ka2 {[%clk 0:01:22]}  Kc8 {[%clk 0:00:41]} 101. Kb2 {[%clk 0:01:23]}  Kd8 {[%clk 0:00:42]} 102. Kc2 {[%clk 0:01:24]}  Kc8 {[%clk 0:00:43]} 103. Kd2 {[%clk 0:01:25]}  Kd8 {[%clk 0:00:44]} 104. Ke2 {[%clk 0:01:26]}  Kc8 {[%clk 0:00:45]} 105. Kf2 {[%clk 0:01:27]}  Kd8 {[%clk 0:00:46]} 106. Kg2 {[%clk 0:01:28]}  Kc8 {[%clk 0:00:47]} 107. Kh2 {[%clk 0:01:29]}  Kd8 {[%clk 0:00:48]} 108. g6 {[%clk 0:01:29]}  Kc8 {[%clk 0:00:49]} 109. Kh1 {[%clk 0:01:30]}  Kd8 {[%clk 0:00:50]} 110. Kg1 {[%clk 0:01:31]}  Kc8 {[%clk 0:00:50]} 111. Kf1 {[%clk 0:01:32]}  Kd8 {[%clk 0:00:51]} 112. Ke1 {[%clk 0:01:33]}  Kc8 {[%clk 0:00:52]} 113. Kd1 {[%clk 0:01:34]}  Kd8 {[%clk 0:00:53]} 114. Kc1 {[%clk 0:01:35]}  Kc8 {[%clk 0:00:54]} 115. Kb1 {[%clk 0:01:36]}  Kd8 {[%clk 0:00:55]} 116. Ka1 {[%clk 0:01:37]}  Kc8 {[%clk 0:00:56]} 117. Ka2 {[%clk 0:01:38]}  Kd8 {[%clk 0:00:57]} 118. Kb2 {[%clk 0:01:38]}  Kc8 {[%clk 0:00:58]} 119. Kc2 {[%clk 0:01:39]}  Kd8 {[%clk 0:00:59]} 120. Kd2 {[%clk 0:01:40]}  Kc8 {[%clk 0:00:59]} 121. Ke2 {[%clk 0:01:41]}  Kd8 {[%clk 0:01:00]} 122. Kf2 {[%clk 0:01:42]}  Kc8 {[%clk 0:01:01]} 123. Kg2 {[%clk 0:01:43]}  Kd8 {[%clk 0:01:02]} 124. Kh2 {[%clk 0:01:44]}  Kc8 {[%clk 0:01:03]} 125. g7 {[%clk 0:01:45]}  Kd8 {[%clk 0:01:04]} 126. Kh1 {[%clk 0:01:46]}  Kc8 {[%clk 0:01:05]} 127. Kg1 {[%clk 0:01:46]}  Kd8 {[%clk 0:01:06]} 128. Kf1 {[%clk 0:01:47]}  Kc8 {[%clk 0:01:07]} 129. Ke1 {[%clk 0:01:48]}  Kd8 {[%clk 0:01:08]} 130. Kd1 {[%clk 0:01:49]}  Kc8 {[%clk 0:01:08]} 131. Kc1 {[%clk 0:01:50]}  Kd8 {[%clk 0:01:09]} 132. Kb1 {[%clk 0:01:51]}  Kc8 {[%clk 0:01:10]} 133. Ka1 {[%clk 0:01:52]}  Kd8 {[%clk 0:01:11]} 134. Ka2 {[%clk 0:01:53]}  Kc8 {[%clk 0:01:11]} 135. Kb2 {[%clk 0:01:53]}  Kd8 {[%clk 0:01:12]} 136. Kc2 {[%clk 0:01:54]}  Kc8 {[%clk 0:01:13]} 137. Kd2 {[%clk 0:01:55]}  Kd8 {[%clk 0:01:13]} 138. Ke2 {[%clk 0:01:56]}  Kc8 {[%clk 0:01:14]} 139. Kf2 {[%clk 0:01:57]}  Kd8 {[%clk 0:01:15]} 140. Kg2 {[%clk 0:01:58]}  Kc8 {[%clk 0:01:15]} 141. Kh2 {[%clk 0:01:59]}  Kd8 {[%clk 0:01:16]} 142. b5 {[%clk 0:01:59]}  Kc8 {[%clk 0:01:17]} 143. Kh1 {[%clk 0:02:00]}  Kd8 {[%clk 0:01:18]} 144. Kg1 {[%clk 0:02:01]}  Kc8 {[%clk 0:01:19]} 145. Kf1 {[%clk 0:02:02]}  Kd8 {[%clk 0:01:20]} 146. Ke1 {[%clk 0:02:03]}  Kc8 {[%clk 0:01:21]} 147. Kd1 {[%clk 0:02:04]}  Kd8 {[%clk 0:01:22]} 148. Kc1 {[%clk 0:02:05]}  Kc8 {[%clk 0:01:23]} 149. Kb1 {[%clk 0:02:05]}  Kd8 {[%clk 0:01:23]} 150. Ka1 {[%clk 0:02:06]}  Kc8 {[%clk 0:01:24]} 151. Ka2 {[%clk 0:02:07]}  Kd8 {[%clk 0:01:25]} 152. Kb2 {[%clk 0:02:08]}  Kc8 {[%clk 0:01:26]} 153. Kc2 {[%clk 0:02:09]}  Kd8 {[%clk 0:01:27]} 154. Kd2 {[%clk 0:02:10]}  Kc8 {[%clk 0:01:28]} 155. Ke2 {[%clk 0:02:11]}  Kd8 {[%clk 0:01:29]} 156. Kf2 {[%clk 0:02:12]}  Kc8 {[%clk 0:01:30]} 157. Kg2 {[%clk 0:02:13]}  Kd8 {[%clk 0:01:31]} 158. Kh2 {[%clk 0:02:14]}  Kc8 {[%clk 0:01:31]} 159. Kh1 {[%clk 0:02:14]}  Kd8 {[%clk 0:01:32]} 160. b6 {[%clk 0:02:15]}  Kc8 {[%clk 0:01:33]} 161. Kg1 {[%clk 0:02:16]}  Kd8 {[%clk 0:01:34]} 162. Kf1 {[%clk 0:02:17]}  Kc8 {[%clk 0:01:35]} 163. Ke1 {[%clk 0:02:18]}  Kd8 {[%clk 0:01:36]} 164. Kd1 {[%clk 0:02:19]}  Kc8 {[%clk 0:01:37]} 165. Kc1 {[%clk 0:02:20]}  Kd8 {[%clk 0:01:38]} 166. Kb1 {[%clk 0:02:21]}  Kc8 {[%clk 0:01:38]} 167. Ka1 {[%clk 0:02:22]}  Kb8 {[%clk 0:01:39]} 168. Ka2 {[%clk 0:02:23]}  Kc8 {[%clk 0:01:40]} 169. Kb2 {[%clk 0:02:23]}  Kb8 {[%clk 0:01:40]} 170. Kc2 {[%clk 0:02:24]}  Kc8 {[%clk 0:01:41]} 171. Kd2 {[%clk 0:02:25]}  Kb8 {[%clk 0:01:42]} 172. Ke2 {[%clk 0:02:26]}  Kc8 {[%clk 0:01:42]} 173. Kf2 {[%clk 0:02:27]}  Kb8 {[%clk 0:01:43]} 174. Kg2 {[%clk 0:02:28]}  Kc8 {[%clk 0:01:44]} 175. Kh2 {[%clk 0:02:29]}  Kb8 {[%clk 0:01:45]} 176. Kh1 {[%clk 0:02:30]}  Kc8 {[%clk 0:01:46]} 177. Qe7 {[%clk 0:02:31]}  Kb8 {[%clk 0:01:47]} 178. Kg1 {[%clk 0:02:32]}  Kc8 {[%clk 0:01:48]} 179. Kf1 {[%clk 0:02:32]}  Kb8 {[%clk 0:01:49]} 180. Ke1 {[%clk 0:02:33]}  Kc8 {[%clk 0:01:50]} 181. Kd1 {[%clk 0:02:34]}  Kb8 {[%clk 0:01:51]} 182. Kc1 {[%clk 0:02:35]}  Kc8 {[%clk 0:01:51]} 183. Kb1 {[%clk 0:02:36]}  Kb8 {[%clk 0:01:52]} 184. Ka1 {[%clk 0:02:37]}  Kc8 {[%clk 0:01:53]} 185. Ka2 {[%clk 0:02:38]}  Kb8 {[%clk 0:01:54]} 186. Kb2 {[%clk 0:02:39]}  Kc8 {[%clk 0:01:55]} 187. Kc2 {[%clk 0:02:40]}  Kb8 {[%clk 0:01:56]} 188. Kd2 {[%clk 0:02:41]}  Kc8 {[%clk 0:01:57]} 189. Ke2 {[%clk 0:02:41]}  Kb8 {[%clk 0:01:57]} 190. Kf2 {[%clk 0:02:42]}  Kc8 {[%clk 0:01:58]} 191. Kg2 {[%clk 0:02:43]}  Kb8 {[%clk 0:01:59]} 192. Kh2 {[%clk 0:02:44]}  Kc8 {[%clk 0:02:00]} 193. Kh1 {[%clk 0:02:45]}  Kb8 {[%clk 0:02:00]} 194. f7 {[%clk 0:02:46]}  Kc8 {[%clk 0:02:00]} 195. Kh2 {[%clk 0:02:47]}  Kb8 {[%clk 0:02:01]} 196. Kh3 {[%clk 0:02:48]}  Kc8 {[%clk 0:02:02]} 197. Kh4 {[%clk 0:02:49]}  Kb8 {[%clk 0:02:03]} 198. Kh5 {[%clk 0:02:50]}  Kc8 {[%clk 0:02:04]} 199. Kh6 {[%clk 0:02:50]}  Kb8 {[%clk 0:02:05]} 200. Kh7 {[%clk 0:02:51]}  Kc8 {[%clk 0:02:06]} 201. Kh8 {[%clk 0:02:52]}  Kb8 {[%clk 0:02:06]} 202. Kg8 {[%clk 0:02:53]}  Kc8 {[%clk 0:02:07]} 203. Kf8 {[%clk 0:02:54]}  Kb8 {[%clk 0:02:08]} 204. Ke8 {[%clk 0:02:55]}  Kc8 {[%clk 0:02:09]} 205. g8=Q {[%clk 0:02:54]}  Kb8 {[%clk 0:02:10]} 206. f8=Q {[%clk 0:02:54]}  Kc8 {[%clk 0:02:11]} 207. Kf7# {[%clk 0:02:55]} 1-0


[Site "https://www.chess.com"]